bitfinex-derivatives/quotes_SOLF0:USTF0_20241002
["timestamp","ask_amount","ask_price","bid_price","bid_amount"]
[1727855570497,12.98,147.99,147.95,0.12502]
[1727855570797,2.7038,147.96,147.95,0.12502]
[1727855573099,12.98,147.99,147.95,0.12502]
[1727855573393,3.46097465,148.03,147.95,2.82902]
[1727855573394,2.7036,147.98,147.95,2.82902]
[1727855573600,12.98,148.01,147.95,0.12502]
[1727855574189,16.35445855,148.01,147.95,0.12502]
[1727855574395,2.7036,147.97,147.95,0.12502]
[1727855575597,12.98,147.99,147.95,0.12502]
[1727855575794,2.7038,147.96,147.95,0.12502]
[1727855580498,11.0137,147.97,147.95,0.12502]
[1727855580897,8.31,147.97,147.95,0.12502]
[1727855581201,2.7038,147.96,147.95,0.12502]
[1727855581801,2.7033,147.99,147.95,0.12502]
[1727855582008,8.31,147.98,147.95,0.12502]
[1727855582410,2.7037,147.97,147.95,0.12502]
[1727855584209,2.7035,147.98,147.95,2.82902]
[1727855584399,8.31,148.01,147.95,8.43502]
[1727855584807,8.31,148.0,147.95,8.43502]
[1727855585407,2.7033,147.99,147.96,2.7037]
[1727855585907,8.31,148.0,147.95,8.43502]
[1727855586212,11.0132,148.0,147.97,2.7036]
[1727855586609,8.31,148.0,147.95,8.43502]
[1727855586808,2.7033,147.99,147.96,2.7037]
[1727855588209,11.0131,148.0,147.97,2.7036]
[1727855591423,8.31,148.0,147.95,8.43502]
[1727855592109,11.0131,148.0,147.97,2.7035]
[1727855594222,2.7031,148.0,147.97,2.7035]
[1727855596022,8.31,148.01,147.97,2.7035]
[1727855596226,8.31,148.01,147.96,2.7038]
[1727855596227,2.7033,147.99,147.96,2.7038]
[1727855597924,8.31,148.01,147.95,8.43502]
[1727855598128,8.31,147.97,147.95,0.12502]
[1727855599329,2.7038,147.96,147.95,0.12502]
[1727855599628,8.31,147.97,147.95,0.12502]
[1727855599830,11.0138,147.96,147.95,0.12502]
[1727855601531,11.0137,147.97,147.95,0.12502]
[1727855603233,2.7028,148.02,147.99,2.7031]
[1727855603537,2.7028,148.02,147.99,11.0131]
[1727855604934,2.7026,148.03,148.0,2.703]
[1727855605429,2.7028,148.02,147.99,11.0131]
[1727855605935,2.7029,148.01,147.99,8.31]
[1727855606130,2.7029,148.01,147.98,11.0134]
[1727855606338,8.31,148.03,147.98,8.31]
[1727855606535,8.31,148.02,147.97,9.6366]
[1727855607338,2.7031,148.0,147.97,12.3401]
[1727855608136,1.0,147.98,147.97,12.3401]
[1727855608540,2.0,147.98,147.97,12.3401]
[1727855609531,3.0,147.98,147.97,12.3401]
[1727855610636,3.0,147.98,147.97,4.0301]
[1727855611442,3.0,147.98,147.97,1.3266]
[1727855612239,3.0,147.98,147.96,11.0137]
[1727855612434,2.7033,147.99,147.96,11.0137]
[1727855613033,1.0,147.98,147.96,11.0137]
[1727855614546,1.0,147.98,147.97,11.0136]
[1727855616037,10.9396,148.05,147.97,11.68726358]
[1727855616337,8.31,148.04,147.99,8.31]
[1727855616848,2.7028,148.02,147.99,11.0132]
[1727855618533,2.7028,148.02,147.99,8.31]
[1727855618838,8.31,148.04,147.99,8.31]
[1727855619046,2.7026,148.03,148.0,2.703]
[1727855621046,11.0122,148.05,148.02,2.7026]
[1727855621434,2.7022,148.05,148.02,2.7026]
[1727855621640,2.7024,148.04,148.02,2.7026]
[1727855622042,8.31,148.06,148.0,11.013]
[1727855622235,2.7025,148.03,148.0,11.013]
[1727855622941,8.31,148.06,148.0,8.31]
[1727855623148,2.7024,148.04,148.01,11.0128]
[1727855623846,8.43502,148.07,148.02,2.7027]
[1727855624042,2.7022,148.05,148.02,2.7027]
[1727855625642,8.43502,148.07,148.02,2.7027]
[1727855625848,2.7025,148.04,148.01,11.0128]
[1727855626547,2.7026,148.03,148.01,11.0128]
[1727855627545,2.7028,148.02,147.99,1.2881]
[1727855628152,2.7028,148.02,147.99,3.9912]
[1727855628549,2.7028,148.02,147.99,1.2881]
[1727855628857,8.31,148.04,147.99,1.2881]
[1727855629050,2.7026,148.03,148.0,2.703]
[1727855629249,0.12502,148.07,148.0,8.31]
[1727855629452,8.31,148.06,148.01,8.31]
[1727855629753,2.7024,148.04,148.01,11.0129]
[1727855632443,8.31,148.05,148.01,8.31]
[1727855632649,8.31,148.05,147.99,9.5981]
[1727855633258,2.7028,148.02,147.99,12.3012]
[1727855634357,8.31,148.05,147.99,3.9912]
[1727855634559,2.703,148.01,147.98,11.0133]
[1727855636159,2.7032,148.0,147.97,11.0136]
[1727855638357,8.31,148.02,147.97,11.0136]
[1727855638760,8.31,148.02,147.97,8.31]
[1727855639064,2.703,148.01,147.97,8.31]
[1727855639264,8.31,148.02,147.97,8.31]
[1727855640364,2.7032,148.0,147.97,11.0136]
[1727855642666,2.7034,147.99,147.97,8.31]
[1727855643562,1.2645,148.03,147.95,1.41052]
[1727855643563,8.31,148.01,147.95,1.41052]
[1727855643769,2.7035,147.98,147.96,8.31]
[1727855646360,2.7038,147.96,147.95,0.12502]
[1727855646561,11.0138,147.96,147.95,0.12502]
[1727855647664,15.60504339,147.96,147.95,0.12502]
[1727855650767,11.0138,147.96,147.95,0.12502]
[1727855650971,15.60334388,147.96,147.95,0.12502]
[1727855652473,7.29334388,147.96,147.95,0.12502]
[1727855654272,2.7038,147.96,147.95,0.12502]
[1727855654469,7.11517221,147.96,147.95,0.12502]
[1727855655677,2.7038,147.96,147.95,0.12502]
[1727855658471,2.5714,148.03,147.95,8.43502]
[1727855658671,8.31,148.01,147.97,8.31]
[1727855658975,4.40705578,148.0,147.97,8.31]
[1727855659172,4.40705578,147.99,147.97,8.31]
[1727855659372,2.7033,147.99,147.97,8.31]
[1727855659575,2.5714,148.03,147.97,8.31]
[1727855659777,7.10999346,148.02,147.99,11.0132]
[1727855659975,4.40729346,148.01,147.99,8.31]
[1727855660177,8.31,148.03,147.99,8.31]
[1727855660376,2.703,148.01,147.98,11.0133]
[1727855661572,6.04777163,148.04,148.01,2.7029]
[1727855661777,8.31,148.05,148.01,8.31]
[1727855662674,2.7025,148.04,148.01,11.0129]
[1727855663274,2.7025,148.04,148.01,2.7029]
[1727855663674,8.31,148.05,148.0,8.31]
[1727855663876,2.7025,148.03,148.0,11.013]
[1727855665883,8.31,148.05,148.0,8.31]
[1727855666078,2.7025,148.04,148.01,2.7028]
[1727855666379,3.3828,148.11,148.01,8.31]
[1727855666570,8.31,148.05,148.01,8.31]
[1727855666770,8.31,148.02,147.97,1.3013]
[1727855666971,8.31,148.01,147.97,1.3013]
[1727855667778,2.7033,147.99,147.97,1.3013]
[1727855668380,3.39403047,148.03,147.95,11.13892]
[1727855668381,2.7034,147.98,147.95,11.13892]
[1727855668575,8.31,147.98,147.95,0.12502]
[1727855668971,2.7037,147.97,147.95,0.12502]
[1727855669184,8.31,147.96,147.95,0.12502]
[1727855670374,11.0138,147.96,147.95,0.12502]
[1727855672086,2.7038,147.96,147.95,0.12502]
[1727855672280,11.0138,147.96,147.95,0.12502]
[1727855694996,2.7038,147.96,147.95,0.12502]
[1727855695304,8.31,147.99,147.95,8.43502]
[1727855695495,1.291,148.01,147.95,0.12502]
[1727855695697,8.31,147.98,147.95,0.12502]
[1727855696198,2.7038,147.96,147.95,0.12502]
[1727855698706,11.0138,147.96,147.95,0.12502]
[1727855701304,2.7037,147.97,147.95,0.12502]
[1727855701506,8.31,147.96,147.95,0.12502]
[1727855703303,11.0138,147.96,147.95,0.12502]
[1727855714123,2.7038,147.96,147.95,0.12502]
[1727855714516,2.7036,147.98,147.95,2.82892]
[1727855714713,74.3309,148.04,147.97,8.31]
[1727855714918,8.31,148.02,147.97,8.31]
[1727855715212,8.31,147.99,147.96,1.2784]
[1727855715411,8.31,147.98,147.96,1.2784]
[1727855715719,2.7038,147.96,147.95,0.12502]
[1727855716114,11.0138,147.96,147.95,0.12502]
[1727855718823,14.39277207,147.96,147.95,0.12502]
[1727855719010,2.7045,147.92,147.9,1.2784]
[1727855719211,11.0145,147.92,147.9,1.2784]
[1727855721220,8.31,147.92,147.9,1.2784]
[1727855721424,3.0,147.95,147.9,1.2784]
[1727855721425,11.0147,147.91,147.9,1.2784]
[1727855721831,8.31,147.91,147.89,0.12502]
[1727855722129,2.7049,147.9,147.89,0.12502]
[1727855723725,11.0149,147.9,147.89,0.12502]
[1727855726121,1.3145,147.94,147.89,0.12502]
[1727855726424,11.0148,147.91,147.89,0.12502]
[1727855726814,11.0149,147.9,147.89,0.12502]
[1727855733225,2.7046,147.92,147.89,0.12502]
[1727855734017,8.31,147.93,147.89,0.12502]
[1727855734220,2.7047,147.91,147.89,0.12502]
[1727855734426,8.31,147.91,147.89,0.12502]
[1727855735226,8.31,147.92,147.89,0.12502]
[1727855736222,2.7047,147.91,147.89,0.12502]
[1727855739535,11.0147,147.91,147.89,0.12502]
[1727855741840,8.31,147.91,147.89,0.12502]
[1727855742043,11.0149,147.9,147.89,0.12502]
[1727855744837,11.0149,147.9,147.83,1.37962]
[1727855744838,2.7058,147.85,147.83,0.12502]
[1727855745038,8.31,147.9,147.83,0.12502]
[1727855745039,8.31,147.86,147.83,0.12502]
[1727855745443,2.706,147.84,147.83,0.12502]
[1727855752260,2.7059,147.85,147.83,0.12502]
[1727855752459,8.31,147.86,147.83,0.12502]
[1727855752960,2.7058,147.85,147.83,0.12502]
[1727855753353,2.706,147.84,147.83,0.12502]
[1727855754355,1.3148,147.92,147.83,0.12502]
[1727855754557,8.31,147.87,147.83,0.12502]
[1727855756560,2.706,147.84,147.83,0.12502]
[1727855757660,2.7059,147.85,147.83,0.12502]
[1727855759156,8.31,147.86,147.83,0.12502]
[1727855759357,2.706,147.85,147.83,0.12502]
[1727855760362,1.3148,147.92,147.83,2.83102]
[1727855760562,8.31,147.87,147.83,0.12502]
[1727855761061,2.7057,147.86,147.83,2.83112]
[1727855761261,1.3148,147.92,147.84,8.31]
[1727855761568,8.31,147.89,147.84,8.31]
[1727855761773,8.31,147.88,147.83,0.12502]
[1727855761965,8.31,147.88,147.83,8.43502]
[1727855763067,2.7055,147.87,147.84,2.706]
[1727855765067,2.706,147.85,147.83,0.12502]
[1727855765268,8.31,147.86,147.83,0.12502]
[1727855765472,8.31,147.84,147.83,0.12502]
[1727855765766,11.016,147.84,147.83,0.12502]
[1727855786894,2.706,147.84,147.83,0.12502]
[1727855787281,11.016,147.84,147.83,0.12502]
[1727855793095,3.7057,147.86,147.83,0.12502]
[1727855793287,1.0,147.86,147.83,8.43502]
[1727855793494,1.0,147.86,147.85,2.7058]
[1727855794794,1.0,147.86,147.83,2.83102]
[1727855794990,1.0,147.86,147.83,8.43502]
[1727855795194,1.0,147.86,147.84,8.31]
[1727855795394,1.0,147.86,147.85,11.0158]
[1727855798405,1.0,147.86,147.85,2.7058]
[1727855799095,1.0,147.86,147.83,0.12502]
[1727855799096,1.0,147.86,147.84,2.706]
[1727855799300,1.0,147.86,147.83,8.43502]
[1727855800499,1.0,147.86,147.84,2.706]
[1727855801003,1.0,147.86,147.85,2.7058]
[1727855801600,1.0,147.86,147.84,2.706]
[1727855801995,3.7056,147.86,147.83,8.43502]
[1727855802308,3.7056,147.86,147.83,11.14112]
[1727855803107,1.0,147.86,147.83,8.43502]
[1727855803302,2.7058,147.85,147.83,8.43502]
[1727855803900,3.7057,147.86,147.83,11.14122]
[1727855804399,1.0,147.86,147.83,11.14122]
[1727855804598,2.7058,147.85,147.83,11.14122]
[1727855805508,1.0,147.86,147.84,2.706]
[1727855807311,3.7056,147.86,147.83,11.14102]
[1727855809409,3.7056,147.86,147.83,2.83102]
[1727855810806,2.7058,147.85,147.83,2.83102]
[1727855811014,1.0,147.86,147.83,2.83102]
[1727855811217,1.0,147.86,147.83,0.12502]
[1727855811516,2.7058,147.85,147.83,0.12502]
[1727855812813,11.0158,147.85,147.83,0.12502]
[1727855813413,1.0,147.86,147.84,2.7059]
[1727855813818,1.0,147.86,147.83,0.12502]
[1727855814819,2.7058,147.85,147.83,2.83122]
[1727855815211,2.7058,147.85,147.83,0.12502]
[1727855815212,2.706,147.84,147.83,0.12502]
[1727855815909,11.016,147.84,147.83,0.12502]
[1727855821721,2.706,147.84,147.83,0.12502]
[1727855821920,11.016,147.84,147.83,0.12502]
[1727855823218,2.706,147.84,147.83,0.12502]
[1727855823525,11.016,147.84,147.83,0.12502]
[1727855824216,2.7066,147.81,147.77,1.43402]
[1727855824424,8.31,147.81,147.77,4.14122]
[1727855824724,2.7067,147.8,147.77,4.14122]
[1727855827022,2.7067,147.8,147.77,12.45122]
[1727855827418,2.7067,147.8,147.77,4.14122]
[1727855830722,2.7587,147.85,147.79,8.31]
[1727855830723,2.7062,147.83,147.79,8.31]
[1727855830917,1.0,147.86,147.81,8.31]
[1727855831121,1.0,147.86,147.82,8.31]
[1727855831319,2.7058,147.85,147.82,11.0163]
[1727855831515,2.7058,147.85,147.82,8.31]
[1727855832128,1.0,147.86,147.82,8.31]
[1727855832427,2.706,147.84,147.81,8.31]
[1727855832621,2.706,147.84,147.81,11.0164]
[1727855835925,9.31,147.86,147.81,11.0164]
[1727855836129,2.7059,147.85,147.82,2.7063]
[1727855836327,1.0,147.86,147.82,8.31]
[1727855836530,1.0,147.86,147.85,8.31]
[1727855836735,1.0,147.86,147.85,11.0158]
[1727855837122,0.12502,147.89,147.87,2.7054]
[1727855837322,0.12502,147.89,147.87,8.31]
[1727855838029,0.12502,147.89,147.85,8.31]
[1727855838734,2.83022,147.89,147.85,8.31]
[1727855838931,8.43502,147.89,147.84,1.2809]
[1727855839122,8.31,147.88,147.83,1.3087]
[1727855839631,8.31,147.88,147.83,9.6187]
[1727855840434,0.12502,147.89,147.84,8.31]
[1727855840730,2.83022,147.89,147.86,2.7056]
[1727855840927,0.12502,147.89,147.84,8.31]
[1727855842121,2.7053,147.88,147.84,11.0158]
[1727855842525,2.7055,147.87,147.84,11.0158]
[1727855844537,2.7053,147.88,147.85,2.7058]
[1727855845634,0.12502,147.89,147.85,8.31]
[1727855846123,0.12502,147.89,147.83,1.3087]
[1727855846329,8.31,147.86,147.83,1.3087]
[1727855846523,2.7063,147.83,147.8,2.7067]
[1727855846723,8.31,147.82,147.79,80.03728658]
[1727855846933,3.45351437,147.86,147.77,1.40352]
[1727855847135,8.31,147.81,147.77,1.40352]
[1727855848030,2.7068,147.8,147.77,1.40352]
[1727855848335,8.31,147.81,147.77,4.11062]
[1727855848840,8.31,147.82,147.77,12.42062]
[1727855849029,8.31,147.81,147.77,4.11062]
[1727855849434,2.7068,147.8,147.77,4.11062]
[1727855850528,11.0166,147.81,147.77,12.42062]
[1727855850735,2.7066,147.81,147.77,9.71352]
[1727855850930,3.9884,147.88,147.79,2.7068]
[1727855851229,7.430474,147.88,147.78,8.31]
[1727855851436,8.31,147.86,147.81,11.0164]
[1727855851634,2.6868,147.88,147.82,8.31]
[1727855851835,2.6868,147.88,147.83,8.31]
[1727855851836,8.31,147.88,147.83,8.31]
[1727855852130,2.7055,147.87,147.84,2.7059]
[1727855852335,8.31,147.88,147.84,11.0159]
[1727855852532,11.0154,147.88,147.84,11.0159]
[1727855852736,8.31,147.88,147.84,11.0159]
[1727855853140,2.7055,147.87,147.84,11.0159]
[1727855853336,2.7055,147.87,147.83,9.6798]
[1727855853539,2.7055,147.87,147.83,12.3859]
[1727855853739,2.7058,147.86,147.83,1.3698]
[1727855853942,8.31,147.87,147.83,1.3698]
[1727855854639,2.7059,147.85,147.83,1.3698]
[1727855855139,2.7057,147.86,147.83,4.0758]
[1727855855336,8.31,147.87,147.83,9.6798]
[1727855855836,2.7055,147.87,147.84,2.706]
[1727855856237,0.12502,147.89,147.85,8.31]
[1727855856438,2.83012,147.89,147.86,11.0156]
[1727855857139,0.12502,147.89,147.87,2.7054]
[1727855857336,0.12502,147.89,147.86,8.31]
[1727855857539,0.12502,147.89,147.83,16.9068]
[1727855858344,0.12502,147.89,147.84,2.7058]
[1727855858540,0.12502,147.89,147.83,2.6325]
[1727855858740,0.12502,147.89,147.83,4.0759]
[1727855859639,2.7054,147.88,147.85,2.7057]
[1727855861944,0.12502,147.89,147.87,2.7053]
[1727855863946,2.83012,147.89,147.86,2.7056]
[1727855868244,0.12502,147.89,147.83,15.7274]
[1727855868445,2.7055,147.87,147.84,2.7059]
[1727855869543,2.7055,147.87,147.85,2.7058]
[1727855872245,2.7055,147.87,147.83,15.7274]
[1727855872447,2.7055,147.87,147.84,2.7059]
[1727855872845,3.7055,147.87,147.84,2.7059]
[1727855873646,1.0,147.87,147.81,80.02295245]
[1727855874643,2.7057,147.86,147.83,2.7062]
[1727855875449,2.7058,147.85,147.82,2.7063]
[1727855875649,1.0,147.87,147.81,80.02295245]
[1727855876148,2.7061,147.84,147.81,82.72945245]
[1727855876954,13.98,147.87,147.79,1.386]
[1727855877255,1.3636,147.86,147.79,1.386]
[1727855877454,2.7065,147.82,147.79,4.0928]
[1727855880045,1.3636,147.86,147.78,2.707]
[1727855880046,2.7067,147.81,147.78,2.707]
[1727855880258,2.7067,147.81,147.77,1.45122]
[1727855880259,12.98,147.85,147.77,0.12502]
[1727855880856,2.7065,147.81,147.79,2.7068]
[1727855881263,2.6216,147.86,147.77,13.10502]
[1727855881565,2.7062,147.84,147.77,13.10502]
[1727855881948,1.3636,147.86,147.78,1.2973]
[1727855882147,2.706,147.84,147.78,1.2973]
[1727855882552,2.706,147.84,147.81,2.7064]
[1727855882749,2.7063,147.83,147.78,1.2973]
[1727855882960,1.3636,147.86,147.8,2.7066]
[1727855883159,1.3636,147.86,147.78,1.2973]
[1727855883362,2.7064,147.82,147.78,1.2973]
[1727855883552,1.3636,147.86,147.8,2.7067]
[1727855884557,2.7061,147.84,147.81,2.7065]
[1727855884960,1.3636,147.86,147.79,12.98]
[1727855885162,2.7059,147.85,147.82,2.7062]
[1727855885562,1.3636,147.86,147.79,12.98]
[1727855885754,2.7061,147.84,147.81,2.7065]
[1727855889558,2.7061,147.84,147.81,11.0165]
[1727855893764,8.31,147.85,147.79,8.31]
[1727855894168,2.7065,147.82,147.79,11.0168]
[1727855897361,8.31,147.85,147.79,8.31]
[1727855897558,3.3828,147.83,147.8,3.3834]
[1727855898365,8.31,147.85,147.8,3.3834]
[1727855898366,3.383,147.82,147.8,3.3834]
[1727855899661,3.383,147.82,147.79,11.6935]
[1727855899861,8.31,147.85,147.79,3.3835]
[1727855900062,3.3832,147.81,147.79,11.6935]
[1727855901071,8.31,147.83,147.77,0.12502]
[1727855901366,8.31,147.82,147.77,3.50902]
[1727855901575,8.31,147.8,147.77,0.12502]
[1727855901767,3.3836,147.79,147.77,0.12502]
[1727855902370,3.3836,147.79,147.77,8.43502]
[1727855902764,3.3836,147.8,147.77,8.43502]
[1727855903163,8.31,147.82,147.78,8.31]
[1727855903373,3.3833,147.81,147.78,8.31]
[1727855903872,3.3833,147.81,147.78,11.6938]
[1727855904373,3.3835,147.8,147.78,11.6938]
[1727855906974,3.383,147.82,147.8,3.3833]
[1727855907175,8.31,147.84,147.8,8.31]
[1727855907376,1.3636,147.86,147.8,8.31]
[1727855907377,8.31,147.85,147.8,8.31]
[1727855907770,8.31,147.85,147.81,3.3831]
[1727855907771,3.3829,147.83,147.81,3.3831]
[1727855908175,3.3829,147.83,147.8,8.31]
[1727855909079,3.383,147.82,147.8,11.6933]
[1727855909281,1.3636,147.86,147.8,8.31]
[1727855909483,8.31,147.85,147.8,8.31]
[1727855909678,3.3829,147.83,147.81,3.383]
[1727855910177,3.3829,147.82,147.8,11.6933]
[1727855912283,2.3022,147.87,147.81,8.31]
[1727855912489,3.3824,147.85,147.83,11.6927]
[1727855913086,3.3824,147.85,147.83,8.31]
[1727855913974,4.382,147.87,147.84,11.6923]
[1727855914173,1.0,147.87,147.79,1.2925]
[1727855914372,9.31,147.87,147.82,8.31]
[1727855914778,1.0,147.87,147.82,11.6929]
[1727855914981,9.31,147.87,147.82,11.6929]
[1727855915283,3.3825,147.85,147.82,11.6929]
[1727855920591,3.3821,147.86,147.83,3.3827]
[1727855920884,1.0,147.87,147.82,3.37978554]
[1727855920885,1.0,147.87,147.85,8.31]
[1727855921081,1.0,147.87,147.86,8.31]
[1727855921288,4.3818,147.87,147.85,11.6921]
[1727855922290,4.3818,147.87,147.85,8.31]
[1727855922793,1.0,147.87,147.85,8.31]
[1727855923086,1.0,147.87,147.85,11.6921]
[1727855924188,4.3819,147.87,147.85,11.6921]
[1727855925594,1.0,147.87,147.85,11.6921]
[1727855925785,1.0,147.87,147.85,3.3821]
[1727855925986,1.0,147.87,147.85,11.6921]
[1727855926996,4.3819,147.87,147.85,11.6921]
[1727855932286,1.0,147.87,147.86,8.31]
[1727855935095,1.0,147.87,147.86,11.692]
[1727855935400,1.0,147.87,147.82,3.30738573]
[1727855935618,4.382,147.87,147.85,8.31]
[1727855936598,4.382,147.87,147.85,11.6922]
[1727855937602,4.382,147.87,147.86,8.31]
[1727855941005,4.382,147.87,147.8,81.29134198]
[1727855941006,1.0,147.87,147.8,81.29134198]
[1727855941310,1.0,147.87,147.83,8.31]
[1727855941605,3.3822,147.86,147.83,11.6926]
[1727855941999,3.3822,147.86,147.83,8.31]
[1727855942209,3.3822,147.86,147.84,3.3825]
[1727855943410,4.3822,147.86,147.84,3.3825]
[1727855944503,4.3822,147.86,147.85,8.31]
[1727855945905,4.3822,147.86,147.84,3.3825]
[1727855946206,4.3822,147.86,147.85,8.31]
[1727855948809,3.3822,147.86,147.85,8.31]
[1727855949511,3.3822,147.86,147.8,81.29134198]
[1727855949512,8.31,147.86,147.8,81.29134198]
[1727855949716,3.3829,147.83,147.81,8.31]
[1727855950711,3.3829,147.83,147.81,11.6932]
[1727855952620,1.0,147.86,147.82,8.31]
[1727855952916,3.3826,147.84,147.82,8.31]
[1727855954216,3.3826,147.84,147.82,11.6928]
[1727855956017,8.31,147.87,147.82,11.6928]
[1727855956214,4.3824,147.85,147.82,11.6928]
[1727855956416,4.3824,147.85,147.83,11.6926]
[1727855958711,4.3824,147.85,147.83,3.3826]
[1727855959723,3.3825,147.84,147.82,3.3828]
[1727855963120,4.3824,147.85,147.83,3.3827]
[1727855965643,3.3826,147.84,147.82,3.3828]
[1727855968828,1.0,147.83,147.82,3.3828]
[1727855969028,1.0,147.83,147.81,8.31]
[1727855969228,1.0,147.83,147.81,11.6931]
[1727855973639,1.0,147.83,147.82,3.3829]
[1727855974237,3.3826,147.84,147.82,3.3829]
[1727855974938,1.0,147.83,147.82,3.3829]
[1727855980147,3.3824,147.85,147.82,3.3829]
[1727855983846,3.3828,147.83,147.81,3.3831]
[1727855984036,1.0,147.82,147.81,3.3831]
[1727855986549,3.3828,147.83,147.81,3.3831]
[1727855987148,1.0,147.82,147.81,3.3831]
[1727855992347,3.3828,147.83,147.81,3.3831]
[1727855995551,3.3835,147.8,147.78,3.3838]
[1727855995751,8.31,147.85,147.79,8.31]
[1727855995951,8.31,147.85,147.8,8.31]
[1727855996155,3.3827,147.84,147.81,3.383]
[1727855996552,8.31,147.85,147.8,8.31]
[1727855996858,8.31,147.82,147.79,3.3835]
[1727855997255,1.0,147.8,147.79,3.3835]
[1727855997456,1.0,147.8,147.77,0.12502]
[1727855997854,3.3837,147.79,147.77,0.12502]
[1727855999759,3.3839,147.78,147.77,0.12502]
[1727856005061,3.3847,147.75,147.72,0.12518]
[1727856005261,1.3444,147.79,147.72,0.12518]
[1727856005763,1.3771,147.78,147.72,0.12518]
[1727856006060,3.385,147.73,147.72,0.12518]
[1727856008167,3.3852,147.72,147.71,0.12502]
[1727856009856,3.3848,147.74,147.71,3.51032]
[1727856010164,1.0,147.77,147.71,3.51032]
[1727856010165,1.0,147.77,147.71,0.12502]
[1727856011062,1.0,147.77,147.76,3.3843]
[1727856011559,4.7281,147.79,147.76,3.3843]
[1727856011958,3.3835,147.8,147.77,3.3839]
[1727856012162,73.08,147.82,147.72,1.2998]
[1727856012365,1.2759,147.85,147.73,1.2543]
[1727856012562,3.3834,147.8,147.77,3.3839]
[1727856012758,1.2759,147.85,147.73,1.2543]
[1727856013162,3.3833,147.81,147.78,3.3837]
[1727856014971,3.3836,147.8,147.76,3.3843]
[1727856015170,1.2612,147.84,147.76,3.3843]
[1727856015563,1.0,147.77,147.76,3.3843]
[1727856016768,4.3842,147.77,147.74,3.3846]
[1727856017071,4.3842,147.77,147.72,1.2998]
[1727856017567,4.3842,147.77,147.74,3.3847]
[1727856017957,3.3842,147.77,147.74,3.3847]
[1727856018662,4.3842,147.77,147.74,3.3847]
[1727856019063,3.3845,147.76,147.73,3.3848]
[1727856019458,1.0,147.77,147.71,0.12502]
[1727856021057,1.0,147.77,147.75,3.3844]
[1727856021267,1.0,147.77,147.71,0.12502]
[1727856021771,1.0,147.77,147.75,3.3845]
[1727856022067,1.0,147.77,147.71,0.12502]
[1727856022277,4.3842,147.77,147.74,3.3846]
[1727856022567,1.0,147.77,147.71,0.12502]
[1727856023370,3.385,147.74,147.71,3.51032]
[1727856026869,3.385,147.74,147.72,3.3852]
[1727856027875,4.3842,147.77,147.71,0.12502]
[1727856028171,1.0,147.77,147.71,0.12502]
[1727856028971,3.3844,147.76,147.74,3.3847]
[1727856029972,3.384,147.78,147.75,3.3844]
[1727856030280,3.384,147.78,147.72,1.2762]
[1727856030475,3.3842,147.77,147.74,3.3847]
[1727856030676,1.0,147.76,147.72,1.2762]